bitfinex/quotes_SOLUSD_20241016
["timestamp","ask_amount","ask_price","bid_price","bid_amount"]
[1729068270407,30.0,154.7,154.69,64.51626151]
[1729068275105,30.0,154.7,154.69,0.97002481]
[1729068275301,30.0,154.7,154.66,6.4656]
[1729068275497,30.0,154.7,154.66,6.4657]
[1729068275818,30.0,154.7,154.6,1.9035115]
[1729068275819,30.0,154.7,154.65,0.97025917]
[1729068276112,30.0,154.7,154.68,6.4649]
[1729068276615,30.0,154.7,154.67,6.465]
[1729068278092,30.0,154.7,154.69,6.4645]
[1729068279603,30.0,154.7,154.69,37.99284863]
[1729068280415,30.0,154.7,154.69,61.76973263]
[1729068281497,15.3474,154.77,154.74,6.462]
[1729068281808,30.0,154.75,154.74,6.462]
[1729068289923,21.5464,154.88,154.83,6.4584]
[1729068290127,15.2361,154.88,154.79,10.13680829]
[1729068290342,21.5464,154.92,154.84,14.44014162]
[1729068290625,21.5464,154.92,154.85,20.0]
[1729068290825,21.5464,154.92,154.87,6.4569]
[1729068291193,21.5464,154.92,154.89,20.0]
[1729068291700,21.5464,154.92,154.88,6.4562]
[1729068294149,21.5464,154.92,154.89,6.4561]
[1729068295429,28.0015,154.92,154.83,43.776884]
[1729068295624,21.5464,154.92,154.87,6.4569]
[1729068296835,21.5464,154.92,154.83,43.776884]
[1729068297006,21.5464,154.92,154.88,6.4564]
[1729068301931,21.5464,154.92,154.9,6.4557]
[1729068303516,15.2361,154.92,154.9,6.4557]
[1729068304941,15.2361,154.92,154.89,6.4558]
[1729068305128,15.2361,154.92,154.85,43.776884]
[1729068305324,15.2361,154.92,154.9,6.4556]
[1729068305819,22.476,154.96,154.93,6.4544]
[1729068306413,22.476,154.96,154.92,6.4548]
[1729068306830,22.476,154.96,154.93,6.4544]
[1729068308052,22.476,154.96,154.92,6.4548]
[1729068308250,16.4574,154.96,154.94,6.454]
[1729068308756,16.4574,154.96,154.95,6.4536]
[1729068310064,16.4574,154.96,154.87,35.5178]
[1729068310234,30.082884,154.94,154.86,10.37603757]
[1729068310558,30.082884,154.94,154.86,6.4574]
[1729068310559,6.4552,154.92,154.86,6.4574]
[1729068311355,6.306,154.94,154.81,6.2021]
[1729068311653,12.7605,154.94,154.89,6.456]
[1729068311841,6.306,154.94,154.89,6.456]
[1729068313039,6.306,154.94,154.91,6.4552]
[1729068313660,16.4574,154.96,154.92,6.4546]
[1729068314758,16.4574,154.96,154.87,23.776884]
[1729068314950,16.4574,154.96,154.93,6.4542]
[1729068317755,16.4574,154.96,154.87,34.15292157]
[1729068318063,16.4574,154.96,154.88,20.0]
[1729068318250,6.454,154.95,154.9,6.4553]
[1729068318771,16.4574,154.96,154.92,6.4546]
[1729068319151,22.911,154.96,154.9,6.4554]
[1729068319457,16.4574,154.96,154.88,20.0]
[1729068319664,16.4574,154.96,154.92,6.4546]
[1729068320948,16.4574,154.96,154.88,20.0]
[1729068321162,16.4574,154.96,154.94,6.454]
[1729068321343,15.6952,155.0,154.96,6.4529]
[1729068321552,30.0,154.97,154.9,23.776884]
[1729068321862,30.0,154.97,154.91,20.0]
[1729068322052,22.1469,155.0,154.91,20.0]
[1729068323353,22.1469,155.0,154.96,6.4532]
[1729068324369,22.1469,155.0,154.91,20.0]
[1729068325266,15.6952,155.0,154.91,30.37603757]
[1729068327247,15.6952,155.0,154.93,20.0]
[1729068330281,15.6952,155.0,154.93,10.37603757]
[1729068330454,15.6952,155.0,154.94,20.0]
[1729068333178,15.6952,155.0,154.94,30.37603757]
[1729068333946,0.2,155.05,154.96,20.0]
[1729068334155,0.2,155.05,154.96,30.37603757]
[1729068334468,0.2,155.05,154.98,20.0]
[1729068334677,6.4501,155.04,154.98,20.0]
[1729068334971,6.4501,155.04,154.95,20.0]
[1729068335346,6.4501,155.04,154.95,30.37603757]
[1729068336369,6.6497,155.05,154.97,20.0]
[1729068336871,0.2,155.05,154.97,20.0]
[1729068337049,0.2,155.05,154.97,10.37603757]
[1729068337249,0.2,155.05,154.98,20.0]
[1729068345477,6.4519,155.0,154.92,17.11372421]
[1729068345672,16.4484,155.02,154.92,17.11372421]
[1729068345673,6.4527,154.98,154.92,17.11372421]
[1729068345865,6.4527,154.98,154.89,9.93735853]
[1729068347051,6.4527,154.98,154.9,20.0]
[1729068347962,6.4527,154.98,154.89,20.96872975]
[1729068348161,6.4527,154.98,154.9,10.37603757]
[1729068348357,16.4484,155.02,154.91,34.01263312]
[1729068348564,16.4484,155.02,154.93,20.0]
[1729068349161,16.4484,155.02,154.93,10.37603757]
[1729068349464,16.4484,155.02,154.95,20.0]
[1729068361082,16.4484,155.02,154.95,30.37603757]
[1729068361274,16.4484,155.02,154.95,20.0]
[1729068361474,16.4484,155.02,154.94,20.0]
[1729068361701,22.8992,155.02,154.94,20.0]
[1729068362201,6.4512,155.01,154.94,20.0]
[1729068362405,16.4484,155.02,154.91,20.9686178]
[1729068363007,16.4484,155.02,154.91,0.9686178]
[1729068363291,23.776884,155.01,154.91,4.71103235]
[1729068363497,23.776884,155.01,154.91,11.34465537]
[1729068363498,6.4524,154.98,154.91,11.34465537]
[1729068363709,23.776884,155.01,154.91,11.34465537]
[1729068363710,6.4521,154.99,154.91,11.34465537]
[1729068364379,6.4521,154.99,154.91,0.9686178]
[1729068364580,30.0,154.97,154.91,0.9686178]
[1729068364801,30.0,154.97,154.91,20.9686178]
[1729068367278,15.3461,154.96,154.91,20.0]
[1729068367481,15.3461,154.96,154.88,20.0]
[1729068367694,15.3461,154.96,154.89,3.74964862]
[1729068368077,21.7996,154.96,154.89,3.74964862]
[1729068368480,30.0,154.95,154.89,3.74964862]
[1729068368674,6.4545,154.94,154.88,3.74964862]
[1729068368879,23.776884,154.94,154.87,6.74552646]
[1729068369075,6.4559,154.9,154.86,3.74964862]
[1729068369291,6.4559,154.9,154.82,6.74770257]
[1729068369492,30.0,154.89,154.83,3.74964862]
[1729068369684,30.0,154.89,154.82,7.71689501]
[1729068369685,30.0,154.89,154.84,3.74964862]
[1729068369884,30.0,154.89,154.88,6.4566]
[1729068370297,15.356,154.91,154.84,10.37603757]
[1729068370298,15.356,154.91,154.87,3.74964862]
[1729068370472,15.356,154.91,154.9,6.4557]
[1729068370673,30.0,154.91,154.9,6.4557]
[1729068371379,6.1194,154.93,154.9,6.4557]
[1729068371792,6.1194,154.93,154.91,6.4551]
[1729068371979,30.0,154.92,154.91,6.4551]
[1729068373998,30.0,154.92,154.86,3.74886699]
[1729068374201,30.0,154.92,154.89,6.456]
[1729068374402,6.1194,154.93,154.89,6.456]
[1729068374710,15.2457,154.95,154.93,6.4545]
[1729068375212,15.2457,154.95,154.92,6.4548]
[1729068376605,15.2457,154.95,154.86,3.74846903]
[1729068376606,15.2457,154.95,154.93,6.4544]
[1729068376811,15.2457,154.95,154.94,6.4541]
[1729068377994,6.2968,154.97,154.9,20.0]
[1729068379981,6.2968,154.97,154.9,30.37603757]
[1729068380211,15.1658,154.99,154.91,37.88668192]
[1729068380408,21.5504,155.03,154.94,20.0]
[1729068380614,21.5504,155.03,154.94,30.37603757]
[1729068381185,21.5504,155.03,154.95,10.37603757]
[1729068381407,21.5504,155.03,154.96,20.0]
[1729068383913,21.5504,155.03,154.94,20.0]
[1729068384501,28.001,155.03,154.94,20.0]
[1729068384912,6.4513,155.01,154.93,20.0]
[1729068386014,30.227684,155.02,154.93,20.0]
[1729068387500,21.5504,155.03,154.93,30.37603757]
[1729068387695,28.0008,155.03,154.93,30.37603757]
[1729068388717,23.776884,155.02,154.93,30.37603757]
[1729068388899,23.776884,155.02,154.93,20.0]
[1729068390118,6.4517,155.0,154.91,0.96865798]
[1729068390327,6.4521,154.99,154.91,4.71515705]
[1729068390823,23.776884,155.02,154.91,4.71515705]
[1729068390824,23.776884,154.98,154.91,4.71515705]
[1729068391022,6.1636,154.97,154.89,3.74829459]
[1729068391192,16.1687,154.96,154.88,10.49262134]
[1729068391390,16.1687,154.96,154.88,6.74432675]
[1729068391695,16.1687,154.96,154.89,3.74829459]
[1729068391902,16.1687,154.96,154.88,6.74432675]
[1729068392416,22.6222,154.96,154.88,6.74432675]
[1729068392800,30.0,154.95,154.88,6.74432675]
[1729068393013,30.0,154.95,154.89,20.0]
[1729068393700,30.0,154.95,154.93,6.4544]
[1729068393898,30.0,154.95,154.94,6.4541]
[1729068395406,16.1687,154.96,154.94,6.4541]
[1729068399032,16.1687,154.96,154.89,34.00979792]
[1729068399213,16.1687,154.96,154.89,20.0]
[1729068399414,16.1687,154.96,154.9,3.74880396]
[1729068399737,16.1687,154.96,154.9,3.74888992]
[1729068409729,16.1687,154.96,154.89,20.0]
[1729068409924,16.1687,154.96,154.9,3.75504876]
[1729068410540,16.1687,154.96,154.89,3.75504876]
[1729068410738,30.0,154.94,154.89,20.0]
[1729068410958,30.0,154.94,154.9,23.75504876]
[1729068411251,30.0,154.94,154.9,20.0]
[1729068411847,30.0,154.94,154.91,6.4549]
[1729068412033,30.0,154.94,154.92,6.4547]
[1729068419451,30.0,154.94,154.93,6.4545]
[1729068420162,16.1687,154.96,154.95,6.4536]
[1729068420346,46.1687,154.96,154.95,6.4536]
[1729068421767,30.0,154.96,154.95,6.4536]
[1729068423671,36.4532,154.96,154.89,20.0]
[1729068423846,36.4532,154.96,154.9,3.75905881]
[1729068424046,36.4532,154.96,154.91,3.75905881]
[1729068424248,30.0,154.95,154.89,3.75905881]
[1729068424460,30.0,154.95,154.9,3.75905881]
[1729068424674,30.0,154.95,154.91,10.21425881]
[1729068424874,36.4537,154.95,154.91,6.4552]
[1729068426763,6.4545,154.93,154.89,10.21534423]
[1729068426950,36.4552,154.92,154.89,3.75944423]
[1729068427158,36.4552,154.92,154.88,3.75944423]
[1729068427467,6.4554,154.91,154.89,3.75944423]
[1729068427644,6.4554,154.91,154.82,6.71305448]
[1729068427645,30.232284,154.91,154.86,6.4573]
[1729068427848,30.232284,154.91,154.87,3.76148589]
[1729068428256,30.232284,154.91,154.87,10.21838589]
[1729068428448,30.232284,154.91,154.87,6.4569]
[1729068431077,30.0,154.9,154.87,6.4569]
[1729068432381,30.0,154.9,154.84,20.0]
[1729068432551,30.0,154.9,154.89,6.4561]
[1729068432751,16.1767,154.94,154.91,6.4552]
[1729068432953,22.5326,154.98,154.93,6.4545]
[1729068433463,6.4529,154.97,154.93,6.4545]
[1729068434656,23.776884,154.96,154.93,6.4545]
[1729068434859,23.776884,154.96,154.88,20.0]
[1729068435172,23.776884,154.96,154.92,6.4548]
[1729068435965,23.776884,154.97,154.92,6.4548]
[1729068436171,6.4533,154.96,154.92,6.4548]
[1729068437451,23.776884,154.97,154.93,6.4541]
[1729068437654,23.776884,154.97,154.94,6.454]
[1729068439557,26.4512,155.01,154.92,20.0]
[1729068439756,21.4974,154.99,154.93,3.76145873]
[1729068439985,21.4974,154.99,154.92,20.0]
[1729068440178,21.4974,154.99,154.9,20.0]
[1729068440363,21.4974,154.99,154.91,3.76049006]
[1729068440557,21.4974,154.99,154.92,3.76049006]
[1729068440766,23.776884,154.98,154.89,3.76049006]
[1729068441065,23.776884,154.98,154.88,20.0]
[1729068441066,23.776884,154.98,154.9,3.76049006]
[1729068441283,23.776884,154.98,154.91,3.76049006]
[1729068441472,23.776884,154.98,154.92,3.76049006]
[1729068441669,23.776884,154.98,154.89,3.76049006]
[1729068441870,23.776884,154.98,154.9,3.76049006]
[1729068442173,23.776884,154.98,154.91,3.76049006]
[1729068442377,23.776884,154.98,154.92,3.76049006]
[1729068442576,23.776884,154.98,154.89,3.76049006]
[1729068442762,23.776884,154.98,154.9,3.76049006]
[1729068442957,15.0454,154.99,154.91,23.76049006]
[1729068443163,15.0454,154.99,154.92,23.76049006]
[1729068443377,15.0454,154.99,154.93,23.76049006]
[1729068443577,15.0454,154.99,154.94,23.76049006]
[1729068443776,15.0454,154.99,154.94,20.0]
[1729068444168,15.0454,154.99,154.92,20.0]
[1729068444369,15.0454,154.99,154.93,3.75829547]
[1729068445587,15.0454,154.99,154.92,20.0]
[1729068445773,15.0454,154.99,154.93,3.75803888]
[1729068446863,15.0454,154.99,154.91,3.75803888]
[1729068447065,15.0454,154.99,154.92,3.75803888]
[1729068447366,15.0454,154.99,154.91,3.75803888]
[1729068447575,15.0454,154.99,154.92,3.75803888]
[1729068447773,15.0454,154.99,154.91,3.75803888]
[1729068447975,15.0454,154.99,154.92,3.75803888]
[1729068448293,23.776884,154.98,154.91,3.75803888]
[1729068448492,23.776884,154.98,154.92,3.75803888]
[1729068448677,23.776884,154.98,154.91,3.75803888]
[1729068449794,23.776884,154.98,154.91,12.72483341]
[1729068449977,23.776884,154.98,154.92,23.75775572]
[1729068450181,23.776884,154.98,154.92,20.0]
[1729068450472,23.776884,154.98,154.91,8.96679453]
[1729068450678,23.776884,154.98,154.92,20.0]
[1729068455089,6.4537,154.95,154.87,7.66702354]
[1729068455293,6.4537,154.95,154.88,3.75867573]
[1729068455502,6.4537,154.95,154.89,3.75867573]
[1729068455700,6.4541,154.94,154.88,3.75867573]
[1729068456615,6.4541,154.94,154.9,6.4554]
[1729068456894,23.776884,154.95,154.9,6.4554]
[1729068457102,30.230584,154.95,154.9,6.4554]
[1729068457403,23.776884,154.92,154.89,6.456]
[1729068457791,23.776884,154.92,154.88,6.4564]
[1729068458103,23.776884,154.92,154.84,6.69343975]
[1729068458104,30.232184,154.92,154.85,3.76095905]
[1729068458400,41.5537,154.94,154.85,3.76095905]
[1729068458401,23.876884,154.93,154.85,3.76095905]
[1729068458600,23.776884,154.93,154.85,3.76095905]
[1729068458776,22.0537,154.94,154.85,10.37603757]
[1729068458976,22.0537,154.94,154.86,3.76095905]
[1729068459176,22.0537,154.94,154.91,6.455]
[1729068459380,15.4069,154.94,154.91,6.455]
[1729068459581,15.4069,154.94,154.92,6.4546]
[1729068460715,21.8612,154.94,154.89,3.75821742]
[1729068460887,21.8612,154.94,154.86,3.75956241]
[1729068461201,21.8612,154.94,154.86,3.75956133]
[1729068461390,15.4069,154.94,154.86,3.75956133]
[1729068461793,15.4069,154.94,154.87,3.75956133]
[1729068461993,15.4069,154.94,154.88,3.75956133]
[1729068462190,15.4069,154.94,154.86,3.75956133]
[1729068462383,15.4069,154.94,154.91,6.4552]
[1729068462902,15.4069,154.94,154.89,3.75956133]
[1729068463087,15.4069,154.94,154.9,6.4556]
[1729068465378,15.4069,154.94,154.86,3.75860262]
[1729068465583,15.4069,154.94,154.91,6.4552]
[1729068467413,23.776884,154.93,154.9,6.4557]
[1729068469204,23.776884,154.93,154.85,20.0]
[1729068469404,30.231684,154.93,154.89,6.4561]
[1729068469590,30.231684,154.93,154.88,6.4563]
[1729068470305,30.231684,154.93,154.88,10.21494311]
[1729068470509,30.231684,154.93,154.88,6.4563]
[1729068471208,30.231684,154.93,154.88,3.75856066]
[1729068471415,30.231684,154.93,154.89,6.4561]
[1729068471902,23.776884,154.93,154.85,20.0]
[1729068472106,15.4069,154.94,154.91,6.4552]
[1729068479095,6.4533,154.96,154.92,6.4547]
[1729068479323,23.776884,154.95,154.92,6.4547]
[1729068483116,6.4545,154.93,154.89,3.76366913]
[1729068483324,6.4545,154.93,154.86,3.76366913]
[1729068483526,6.4545,154.93,154.87,3.76366913]
[1729068483927,6.4545,154.93,154.89,6.4559]
[1729068484105,23.776884,154.93,154.89,6.4559]
[1729068485898,6.4555,154.91,154.88,3.76603026]
[1729068486105,23.776884,154.91,154.87,10.22263026]
[1729068486306,23.776884,154.91,154.88,6.4563]
[1729068486510,23.776884,154.91,154.88,10.22233026]
[1729068486804,23.776884,154.91,154.88,6.4563]
[1729068487003,6.4546,154.93,154.89,6.456]
[1729068487204,23.776884,154.92,154.89,6.456]
[1729068487928,23.776884,154.88,154.83,6.6946222]
[1729068488115,23.776884,154.87,154.77,6.4593]
[1729068488315,6.4574,154.86,154.78,8.9724204]
[1729068488615,30.233984,154.87,154.82,6.4589]
[1729068492914,30.0,154.85,154.82,6.4589]
[1729068493311,36.4579,154.85,154.81,6.4592]
[1729068493634,36.4579,154.85,154.79,6.46]
[1729068493635,30.235284,154.84,154.79,6.46]
[1729068494011,36.4587,154.83,154.79,6.46]
[1729068495234,23.776884,154.82,154.76,8.9724204]
[1729068495540,6.4601,154.8,154.76,6.4615]
[1729068495921,23.776884,154.8,154.74,6.70151239]
[1729068496118,6.4603,154.79,154.75,6.4618]
[1729068496323,6.4603,154.79,154.74,6.70151239]
[1729068496634,30.0,154.78,154.74,6.70151239]
[1729068497216,30.0,154.78,154.75,6.4619]
[1729068497832,23.776884,154.77,154.74,6.4622]
[1729068498130,30.0,154.76,154.73,6.4627]
[1729068498433,30.0,154.76,154.72,6.4631]
[1729068498730,30.0,154.76,154.73,6.4627]
[1729068499313,30.238084,154.77,154.73,6.4627]
[1729068499520,30.238084,154.77,154.7,7.67241288]
[1729068499831,30.238084,154.77,154.72,6.4631]
[1729068500739,23.776884,154.78,154.72,8.9724204]
[1729068500934,23.776884,154.78,154.74,6.4623]
[1729068501633,6.4603,154.8,154.73,20.0]
[1729068501836,6.4603,154.8,154.75,6.4619]
[1729068502222,30.0,154.76,154.75,6.4619]
[1729068502637,30.0,154.76,154.74,6.4623]
[1729068504121,30.0,154.76,154.73,6.4628]
[1729068505118,30.0,154.76,154.71,20.0]
[1729068505334,30.0,154.76,154.7,15.67488421]
[1729068505335,36.4616,154.76,154.72,6.4632]
[1729068505534,30.0,154.76,154.72,6.4632]
[1729068506015,30.238984,154.75,154.66,22.09822341]
[1729068506214,30.238984,154.75,154.7,6.4637]
[1729068506215,30.0,154.74,154.7,6.4637]
[1729068506453,36.4626,154.74,154.7,6.4637]
[1729068507151,30.0,154.74,154.7,6.4637]
[1729068507637,23.776884,154.73,154.7,6.4637]
[1729068507843,30.0,154.72,154.69,6.4645]
[1729068508223,30.0,154.72,154.68,6.4648]
[1729068510520,30.0,154.72,154.66,8.9724204]
[1729068510718,30.0,154.72,154.7,6.4639]
[1729068511336,30.0,154.72,154.66,8.9724204]
[1729068511634,30.0,154.72,154.71,6.4637]
[1729068512719,30.0,154.72,154.7,15.4364204]
[1729068513642,30.0,154.72,154.7,6.464]
[1729068519528,6.4625,154.74,154.7,6.464]
[1729068521049,30.239884,154.73,154.69,6.4644]
[1729068521354,6.4635,154.72,154.68,6.4648]
[1729068521843,43.276884,154.74,154.66,8.9724204]
[1729068522027,23.776884,154.7,154.66,8.9724204]
[1729068522229,6.4645,154.69,154.65,6.4661]
[1729068522541,30.0,154.68,154.65,6.4661]
[1729068522841,30.0,154.68,154.64,15.67774695]
[1729068523243,30.0,154.68,154.64,8.9724204]
[1729068523451,30.0,154.68,154.65,6.4661]
[1729068524521,30.242384,154.67,154.63,6.4669]
[1729068524715,30.0,154.66,154.63,6.4669]
[1729068524944,30.0,154.66,154.65,6.4662]
[1729068525349,30.0,154.66,154.64,8.9724204]
[1729068526342,30.0,154.66,154.63,6.4667]
[1729068526730,30.0,154.66,154.64,15.4389204]
[1729068528987,30.0,154.66,154.65,6.4662]
[1729068529839,30.0,154.66,154.65,15.4386204]
[1729068533767,30.0,154.66,154.65,6.4662]
[1729068534266,30.0,154.66,154.65,15.4386204]
[1729068536249,23.776884,154.7,154.66,6.4654]
[1729068536451,23.776884,154.7,154.65,8.9724204]
[1729068536755,15.4279,154.73,154.69,8.9724204]
[1729068536958,30.0,154.7,154.69,15.4369204]
[1729068539362,21.8907,154.73,154.69,15.4369204]
[1729068540067,30.240284,154.72,154.67,8.9724204]
[1729068541967,30.0,154.69,154.67,15.4373204]
[1729068543767,30.240284,154.72,154.68,6.4648]
[1729068545348,30.0,154.69,154.68,6.4648]
[1729068546767,30.240284,154.72,154.68,6.4648]
[1729068548865,15.4279,154.73,154.71,6.4634]
[1729068549066,30.0,154.72,154.71,8.9724204]
[1729068549270,30.0,154.72,154.71,15.4361204]
[1729068550552,6.146,154.75,154.71,15.4361204]
[1729068550861,12.608,154.75,154.71,15.4361204]
[1729068551358,12.608,154.75,154.71,6.4637]
[1729068551547,30.0,154.72,154.71,6.4637]
[1729068553670,30.0,154.72,154.7,8.9724204]
[1729068553855,30.0,154.72,154.7,15.4364204]
[1729068554555,30.0,154.72,154.71,6.4637]
[1729068554785,6.146,154.75,154.71,6.4637]
[1729068554968,12.6081,154.75,154.71,6.4637]
[1729068555281,30.239684,154.74,154.7,15.4364204]
[1729068556257,30.0,154.71,154.7,15.4364204]
[1729068557684,30.0,154.71,154.7,6.464]
[1729068560271,30.0,154.71,154.68,15.4370204]
[1729068560474,30.0,154.71,154.69,6.4645]
[1729068564758,30.0,154.71,154.7,6.4641]
[1729068565180,30.0,154.71,154.7,15.4365204]
[1729068565393,30.0,154.71,154.7,35.4365204]
[1729068565899,15.16,154.77,154.73,6.4626]
[1729068566067,15.16,154.77,154.73,15.4350204]
[1729068566384,30.0,154.74,154.73,15.4350204]
[1729068566572,30.0,154.74,154.73,15.4352204]
[1729068566782,21.6213,154.77,154.73,15.4352204]
[1729068573476,15.16,154.77,154.73,8.9724204]
[1729068574588,21.6212,154.77,154.73,15.4351204]
[1729068577498,15.16,154.77,154.71,8.9724204]
[1729068577789,23.776884,154.73,154.66,15.71699654]
[1729068577989,23.776884,154.73,154.66,8.9724204]
[1729068578168,23.876884,154.71,154.63,0.97038172]
[1729068578369,23.876884,154.71,154.61,6.7468972]
[1729068578585,6.4652,154.68,154.63,6.4669]
[1729068579794,6.4652,154.68,154.64,6.4666]
[1729068582596,30.0,154.67,154.64,6.4666]
[1729068583469,23.776884,154.66,154.62,6.4673]
[1729068584377,30.0,154.65,154.62,6.4673]
[1729068589205,52.9933,154.65,154.6,6.4679]
[1729068589384,23.776884,154.64,154.58,6.74480213]
[1729068589702,36.467,154.63,154.57,8.9724204]
[1729068593086,30.0,154.63,154.57,8.9724204]
[1729068597495,30.0,154.63,154.59,6.4684]
[1729068598997,6.1487,154.62,154.58,6.469]
[1729068599198,30.0,154.61,154.59,6.4686]
[1729068599810,30.0,154.61,154.58,6.4689]
[1729068600400,36.468,154.61,154.55,6.74714909]
[1729068600613,30.0,154.61,154.56,6.4698]
[1729068600930,30.0,154.61,154.54,6.4707]
[1729068600931,6.4691,154.58,154.54,6.4707]
[1729068601212,15.833,154.59,154.56,6.4699]
[1729068601901,30.0,154.57,154.56,6.4699]
[1729068602894,30.0,154.57,154.55,6.4701]
[1729068603111,30.0,154.57,154.56,6.4699]
[1729068605014,30.0,154.57,154.54,6.4707]
[1729068605222,36.4697,154.57,154.53,0.63041709]
[1729068606804,30.0,154.57,154.53,0.63041709]
[1729068607007,30.0,154.57,154.55,6.4702]
[1729068609031,30.0,154.57,154.56,6.4699]
[1729068610204,30.0,154.57,154.53,0.63041709]
[1729068610431,36.4696,154.57,154.53,0.63041709]
[1729068612118,36.4696,154.57,154.53,7.10151709]
[1729068613019,30.0,154.57,154.53,7.10151709]
[1729068613219,36.4699,154.57,154.53,0.63041709]
[1729068613528,15.2121,154.56,154.53,0.63041709]
[1729068613735,30.0,154.55,154.53,0.63041709]
[1729068615434,36.4707,154.55,154.53,0.63041709]
[1729068615625,30.0,154.55,154.53,0.63041709]
[1729068615840,30.0,154.55,154.54,6.4708]
[1729068616218,30.0,154.55,154.53,0.63041709]
[1729068616828,6.4708,154.54,154.53,0.63041709]
[1729068617125,36.4708,154.54,154.53,0.63041709]
[1729068617311,86.351784,154.54,154.53,0.63041709]
[1729068619741,79.880984,154.54,154.53,0.63041709]
[1729068619929,30.0,154.54,154.53,0.63041709]
[1729068620310,16.4244,154.55,154.53,7.10161709]
[1729068620510,16.4244,154.55,154.53,0.63041709]
[1729068621936,16.4244,154.55,154.53,7.10121709]
[1729068622233,20.0,154.57,154.53,7.10121709]
[1729068623452,30.0,154.54,154.53,7.10121709]
[1729068624312,20.0,154.57,154.53,7.10121709]
[1729068625313,6.103,154.63,154.55,8.9724204]
[1729068625640,6.103,154.63,154.57,8.9724204]
[1729068625806,6.103,154.63,154.6,6.4682]
[1729068626519,6.103,154.63,154.59,6.4686]
[1729068626723,43.776884,154.62,154.59,6.4686]
[1729068628839,16.211,154.65,154.57,8.9724204]
[1729068629052,16.211,154.65,154.61,8.9724204]
[1729068629340,16.2022,154.69,154.63,8.9724204]
[1729068629542,22.6669,154.69,154.64,6.4665]
[1729068629740,22.7669,154.69,154.64,6.4665]
[1729068630240,22.6669,154.69,154.64,6.4665]
[1729068630434,16.2022,154.69,154.65,6.4662]
[1729068631540,16.2022,154.69,154.67,6.4652]
[1729068631714,6.2381,154.71,154.67,6.4652]
[1729068631912,16.4139,154.73,154.69,6.4645]
[1729068632337,16.4139,154.73,154.69,8.9724204]
[1729068632513,16.4139,154.73,154.71,6.4634]
[1729068633237,16.4139,154.73,154.67,8.9724204]
[1729068633420,16.4139,154.73,154.7,6.464]
[1729068634133,28.9523,154.77,154.69,8.9724204]
[1729068634340,22.4907,154.77,154.71,8.9724204]
[1729068634525,16.0651,154.81,154.73,8.9724204]
[1729068634720,22.525,154.81,154.75,6.4616]
[1729068635350,16.0651,154.81,154.75,8.9724204]
[1729068635942,16.0651,154.81,154.73,14.03960849]
[1729068636442,16.0651,154.81,154.77,6.461]
[1729068637815,22.5246,154.81,154.76,6.4615]
[1729068638529,30.236984,154.8,154.74,6.4622]
[1729068638919,23.776884,154.8,154.74,6.4622]
[1729068639117,20.0,154.79,154.72,6.4632]
[1729068639324,6.461,154.78,154.72,6.4632]
[1729068639537,6.461,154.78,154.73,6.4627]
[1729068641341,23.776884,154.77,154.67,15.00979475]
[1729068641531,6.4616,154.76,154.71,6.4633]
[1729068641930,6.4612,154.77,154.71,6.4633]
[1729068642121,6.4612,154.77,154.72,6.4631]
[1729068642440,6.4612,154.77,154.72,5.85012]
[1729068646831,23.776884,154.78,154.67,34.03960849]
[1729068647031,6.4619,154.76,154.7,6.4637]
[1729068647442,43.316884,154.78,154.7,6.4637]
[1729068647640,23.776884,154.74,154.69,6.4645]